{"text_format":"3","workbook":"xlsx","n_sheets":1,"sheets":["Sheet1"],"not_rendered":{"images":1,"defined_names":1},"read":"whole","date_system":"1900"}

{"sheet":"Sheet1","index":0,"n_rows":63,"n_cols":4,"rows_kept":63,"merged":[[0,0,0,3],[1,0,1,3],[30,0,30,2],[31,0,31,3],[42,0,42,2],[43,0,43,3],[48,0,48,2],[49,0,49,3],[58,0,58,2],[60,0,60,1],[61,0,61,1],[62,0,62,1]]}
[{"$error":"#VALUE!"}]
["CORPORATE BRANDING PRICING SCHEDULE 2025/26"]
["Quantity","Item","Price Per Item","Amount"]
[400,"Formal shirt (Blue)",null,{"$f":"SUM(A4*C4)","v":0}]
[400,"Golf shirt ",null,{"$f":"SUM(A5*C5)","v":0}]
[200,"Ladies Basic Cardigan",null,0]
[200,"Men’s Basic Jersey ",null,0]
[400,"6 Panel Cap",null,0]
[400,"Neck Warmer",null,0]
[400,"Multi-Function Scarf & Pashmina",null,0]
[400,"200 Ladies and 200 Men's Alex Varga Montpellier Jacket",null,0]
[150,"Fast Charge 22.5W Power Bank - 10,000mAh",null,0]
[150,"Mouse Pad with Wireless Charger",null,0]
[300,"Conference bag",null,0]
[500,"Disc Lip Balm",null,0]
[500,"Tracker Key Tag",null,0]
[500,"Phone Light",null,0]
[500,"Ball Pen",null,0]
[1000,"Fabric Wristbands",null,0]
[1000,"Snap Hook Clip Single-Sided Sublimation Satin Lanyard",null,{"$f":"SUM(A20*C20)","v":0}]
[500,"Orange Reusable shopper",null,0]
[300,"A4 Zip-Around Folder",null,0]
[300,"600ml Vacuum Insulated Mug",null,0]
[300,"Renaissance Notebook & Pen Set",null,0]
[250,"Neoprene Laptop Sleeve (black and orange)",null,0]
[250,"Neoprene Laptop Sleeve (black and orange)",null,0]
[3,"Foldable Luggage-Trolley",null,0]
[1,"Multifunctional Folding Portable Storage Cart with Wheels",null,0]
[300,"Blue Gloss Gift Bag",null,0]
[300,"Phenom Ball Pen & Rollerball Set",null,0]
["Total",null,null,{"$f":"SUM(D4:D30)","v":0}]
["Corporate Social Investment"]
[500,"Bush Hat",null,{"$f":"SUM(A33*C33)","v":0}]
[500,"Polycotton Conti Suit",null,{"$f":"SUM(A34*C34)","v":0}]
[1000,"Boys and Girls School Shoes",null,0]
[2000,"Water bottle ",null,0]
[1000,"USB",null,0]
[500,"Arrow Design Backpack with Front Flap",null,0]
[1000,"Flower Shaped Highlighter",null,0]
[500,"Earbuds",null,0]
[1000,"Shiny 48-Piece Gel Pens",null,0]
[500,"Unisex 180g T-Shirt",null,0]
["Total",null,null,{"$f":"SUM(D33:D42)","v":0}]
["HR & OD"]
[160,"Cooler Bag with Braai Set",null,{"$f":"SUM(A45*C45)","v":0}]
[8,"Glass Trophies",null,{"$f":"SUM(A46*C46)","v":0}]
[50,"Running Jackets",null,0]
[50,"Running T-Shirts",null,0]
["Total",null,null,{"$f":"SUM(D45:D48)","v":0}]
["Gazebos, Banners and Flags"]
[3,"Coated Steel Sublimated Gazebo",null,{"$f":"SUM(A51*C51)","v":0}]
[2,"Large Gazebo",null,0]
[5,"Media Banners",null,0]
[30,"Premium Pull-up Banners and Bags",null,0]
[40,"Outdoor Flags",null,0]
[10,"Pop-up A-Frames",null,0]
[10,"Stretch Tablecloth",null,0]
[10,"Fabric Tablecloth",null,0]
["Total",null,null,{"$f":"SUM(D51:D58)","v":0}]
[1,"Delivery",null,{"$f":"C60*A60","v":0}]
["Sub-Total Excl. VAT",null,null,{"$f":"SUM(D31+D43+D49+D59+D60)","v":0}]
["VAT 15%",null,null,{"$f":"D61*15%","v":0}]
["Grand Total Inc. VAT",null,null,{"$f":"D61+D62","v":0}]